fUST/lending_fUST_20241217
["ID","MTS","AMOUNT","RATE_DAILY","PERIOD"]
[345692107,1734425448314,-3679.622367,0.00024931,7]
[345692108,1734425448323,-2570.21,0.00024931,6]
[345692109,1734425448333,-3679.622367,0.00024931,7]
[345692110,1734425448344,-507.15044495,0.00024931,6]
[345692111,1734425448354,-500.0,0.00024931,6]
[345692112,1734425448363,-2341.25,0.00024931,6]
[345692113,1734425448373,-500.0,0.00024931,6]
[345692114,1734425448384,-3679.622367,0.00024931,7]
[345692115,1734425448397,-3679.622367,0.00024931,7]
[345692116,1734425448406,-3679.622367,0.00024931,7]
[345692117,1734425448533,-501.07119164,0.00024931,6]
[345692118,1734425448543,-500.0,0.00024931,6]
[345692119,1734425448552,-500.0,0.00024931,6]
[345692120,1734425448562,-500.0,0.00024931,6]
[345692121,1734425448571,-500.0,0.00024931,6]
[345692122,1734425448580,-525.45636827,0.00024931,6]
[345692123,1734425448590,-500.0,0.00024931,6]
[345692124,1734425448599,-500.0,0.00024931,6]
[345692125,1734425448608,-1349.25,0.00024931,6]
[345692126,1734425448618,-500.0,0.00024931,6]
[345692127,1734425448627,-500.0,0.00024931,6]
[345692128,1734425448639,-500.0,0.00024931,6]
[345692129,1734425448648,-151.0,0.00024931,7]
[345692130,1734425448658,-500.0,0.00024931,6]
[345692131,1734425448669,-151.0,0.00024931,7]
[345692132,1734425448678,-151.0,0.00024931,7]
[345692133,1734425448687,-500.0,0.00024931,6]
[345692134,1734425448696,-458.918002,0.00024931,7]
[345692135,1734425448705,-458.918002,0.00024931,7]
[345692136,1734425448714,-458.918002,0.00024931,7]
[345692137,1734425448723,-151.0,0.00024931,7]
[345692138,1734425448733,-500.0,0.00024931,6]
[345692139,1734425448742,-279.304259,0.00024931,7]
[345692140,1734425448751,-458.918002,0.00024931,7]
[345692141,1734425448760,-458.918002,0.00024931,7]
[345692142,1734425448770,-458.918002,0.00024931,7]
[345692143,1734425448779,-500.0,0.00024931,6]
[345692144,1734425448788,-500.0,0.00024931,6]
[345692145,1734425448797,-500.0,0.00024931,6]
[345692146,1734425448807,-2683.86,0.00024931,2]
[345692147,1734425448816,-500.0,0.00024931,6]
[345692148,1734425448825,-500.0,0.00024931,6]
[345692149,1734425448834,-500.0,0.00024931,6]
[345692150,1734425448843,-711.12,0.00024931,6]
[345692151,1734425448853,-4440.765571,0.00024931,7]
[345692152,1734425448862,-4440.765571,0.00024931,7]
[345692153,1734425448871,-4440.765571,0.00024931,7]
[345692154,1734425448880,-4440.765571,0.00024931,7]
[345692155,1734425448891,-4440.765571,0.00024931,7]
[345692156,1734425448900,-501.97114389,0.00024931,6]
[345692157,1734425448910,-4440.765571,0.00024931,7]
[345692158,1734425448919,-500.0,0.00024931,6]
[345692159,1734425448928,-297.0,0.00024931,6]
[345692160,1734425448938,-500.0,0.00024931,6]
[345692161,1734425448947,-571.82,0.00024931,6]
[345692162,1734425448957,-500.0,0.00024931,6]
[345692163,1734425448966,-1179.6,0.00024931,6]
[345692164,1734425448975,-500.0,0.00024931,6]
[345692165,1734425448984,-500.0,0.00024931,6]
[345692166,1734425448993,-1039.11,0.00024931,6]
[345692167,1734425449003,-500.0,0.00024931,6]
[345692168,1734425449011,-500.0,0.00024931,6]
[345692169,1734425449021,-162.087698,0.00024931,7]
[345692170,1734425449030,-162.087698,0.00024931,7]
[345692171,1734425449039,-500.0,0.00024931,6]
[345692172,1734425449047,-500.0,0.00024931,6]
[345692173,1734425449056,-162.087698,0.00024931,7]
[345692174,1734425449065,-162.087698,0.00024931,7]
[345692175,1734425449074,-500.0,0.00024931,6]
[345692176,1734425449082,-550.4,0.00024931,6]
[345692177,1734425449092,-500.0,0.00024931,6]
[345692178,1734425449100,-500.0,0.00024931,6]
[345692179,1734425449110,-500.0,0.00024931,6]
[345692180,1734425449119,-2607.46,0.00024931,6]
[345692181,1734425449129,-2159.6,0.00024931,6]
[345692182,1734425449138,-500.0,0.00024931,6]
[345692183,1734425449149,-500.0,0.00024931,6]
[345692184,1734425449158,-500.0,0.00024931,6]
[345692185,1734425449168,-2614.97,0.00024931,6]
[345692186,1734425449178,-500.0,0.00024931,6]
[345692187,1734425449187,-500.0,0.00024931,6]
[345692188,1734425449197,-500.0,0.00024931,6]
[345692189,1734425449207,-1843.61,0.00024931,6]
[345692190,1734425449216,-534.57,0.00024931,6]
[345692191,1734425449225,-500.0,0.00024931,6]
[345692192,1734425449233,-2154.71,0.00024931,6]
[345692193,1734425449243,-500.0,0.00024931,6]
[345692194,1734425449252,-500.0,0.00024931,6]
[345692195,1734425449272,-500.0,0.00024931,6]
[345692196,1734425449290,-500.0,0.00024931,6]
[345692197,1734425449307,-470.46179264,0.00024931,6]
[345692198,1734425449326,-1662.29,0.00024931,6]
[345692199,1734425449346,-500.0,0.00024931,6]
[345692200,1734425449365,-1116.44,0.00024931,6]
[345692201,1734425449383,-500.0,0.00024931,6]
[345692202,1734425449403,-500.0,0.00024931,2]
[345692203,1734425449418,-500.0,0.00024931,6]
[345692204,1734425449433,-598.41,0.00024931,6]
[345692205,1734425449450,-500.0,0.00024931,6]
[345692206,1734425449469,-689.3,0.00024931,6]
[345692207,1734425449482,-500.0,0.00024931,6]
[345692208,1734425449495,-500.0,0.00024931,6]
[345692209,1734425449514,-1514.93,0.00024931,6]
[345692210,1734425449527,-500.0,0.00024931,6]
[345692211,1734425449542,-500.0,0.00024931,6]
[345692212,1734425449555,-500.0,0.00024931,6]
[345692213,1734425449569,-721.4,0.00024931,6]
[345692214,1734425449583,-500.0,0.00024931,6]
[345692215,1734425449597,-500.0,0.00024931,6]
[345692216,1734425449613,-500.0,0.00024931,6]
[345692217,1734425449629,-500.0,0.00024931,6]
[345692218,1734425449647,-151.0,0.00024931,7]
[345692219,1734425449664,-151.0,0.00024931,7]
[345692220,1734425449678,-500.0,0.00024931,6]
[345692221,1734425449693,-500.0,0.00024931,6]
[345692222,1734425449707,-500.0,0.00024931,6]
[345692223,1734425449722,-759.68,0.00024931,6]
[345692224,1734425449737,-644.9725057,0.00024931,6]
[345692225,1734425449751,-500.0,0.00024931,6]
[345692226,1734425449767,-2476.05,0.00024931,6]
[345692227,1734425449781,-500.0,0.00024931,6]
[345692228,1734425449795,-502.65,0.00024931,6]
[345692229,1734425449809,-500.0,0.00024931,6]
[345692230,1734425449823,-500.0,0.00024931,6]
[345692231,1734425449837,-585.84,0.00024931,6]
[345692232,1734425449851,-500.0,0.00024931,6]
[345692233,1734425449865,-993.19,0.00024931,2]
[345692234,1734425449882,-514.41,0.00024931,6]
[345692235,1734425449898,-500.0,0.00024931,6]
[345692236,1734425449915,-500.0,0.00024931,6]
[345692237,1734425449931,-293.78651882,0.00024931,6]
[345692238,1734425449947,-500.0,0.00024931,6]
[345692239,1734425449963,-500.0,0.00024931,6]
[345692240,1734425449980,-332.980478,0.00024931,7]
[345692241,1734425449996,-332.980478,0.00024931,7]
[345692242,1734425450010,-733.045955,0.00024931,7]
[345692243,1734425450025,-637.23,0.00024931,6]
[345692244,1734425450040,-733.045955,0.00024931,7]
[345692245,1734425450056,-332.980478,0.00024931,7]
[345692246,1734425450071,-500.0,0.00024931,6]
[345692247,1734425450085,-332.980478,0.00024931,7]
[345692248,1734425450099,-10080.49003008,0.00024931,2]
[345692249,1734425450113,-500.0,0.00024931,6]
[345692250,1734425450127,-733.045955,0.00024931,7]
[345692251,1734425450142,-733.045955,0.00024931,7]
[345692252,1734425450156,-500.0,0.00024931,6]
[345692253,1734425450171,-500.0,0.00024931,6]
[345692254,1734425450185,-500.0,0.00024931,6]
[345692255,1734425450200,-881.35,0.00024931,6]
[345692256,1734425450215,-500.0,0.00024931,6]
[345692257,1734425450230,-208.099156,0.00024931,7]
[345692258,1734425450246,-208.099156,0.00024931,7]
[345692259,1734425450262,-619.38,0.00024931,6]
[345692260,1734425450279,-500.0,0.00024931,6]
[345692261,1734425450293,-500.0,0.00024931,6]
[345692262,1734425450308,-208.099156,0.00024931,7]
[345692263,1734425450322,-208.099156,0.00024931,7]
[345692264,1734425450336,-843.07,0.00024931,6]
[345692265,1734425450351,-3897.217211,0.00024931,7]
[345692266,1734425450363,-3897.217211,0.00024931,7]
[345692267,1734425450372,-500.0,0.00024931,6]
[345692268,1734425450381,-500.0,0.00024931,6]
[345692269,1734425450393,-505.61817656,0.00024931,6]
[345692270,1734425450403,-3897.217211,0.00024931,7]
[345692271,1734425450413,-3897.217211,0.00024931,7]
[345692272,1734425450423,-500.0,0.00024931,6]
[345692273,1734425450618,-709.2,0.00024931,6]
[345692274,1734425450651,-1099.929585,0.00024931,7]
[345692275,1734425450662,-1099.929585,0.00024931,7]
[345692276,1734425450673,-500.0,0.00024931,6]
[345692277,1734425450683,-500.0,0.00024931,6]
[345692278,1734425450692,-500.0,0.00024931,6]
[345692279,1734425450702,-1099.929585,0.00024931,7]
[345692280,1734425450711,-1099.929585,0.00024931,7]
[345692281,1734425450721,-500.0,0.00024931,6]
[345692282,1734425450730,-500.0,0.00024931,6]
[345692283,1734425450739,-2676.8,0.00024931,6]
[345692284,1734425450748,-500.0,0.00024931,6]
[345692285,1734425450757,-560.43265614,0.00024931,6]
[345692286,1734425450766,-2137.81,0.00024931,6]
[345692287,1734425450775,-500.0,0.00024931,6]
[345692288,1734425450783,-500.0,0.00024931,6]
[345692289,1734425450792,-500.0,0.00024931,6]
[345692290,1734425450802,-500.0,0.00024931,6]
[345692291,1734425450811,-500.0,0.00024931,6]
[345692292,1734425450821,-500.0,0.00024931,6]
[345692293,1734425450830,-500.0,0.00024931,6]
[345692294,1734425450840,-500.0,0.00024931,6]
[345692295,1734425450849,-500.0,0.00024931,6]
[345692296,1734425450858,-3558.12,0.00024931,6]
[345692297,1734425450867,-500.0,0.00024931,6]
[345692298,1734425450877,-500.0,0.00024931,6]
[345692299,1734425450886,-500.0,0.00024931,6]
[345692300,1734425450898,-500.0,0.00024931,6]
[345692301,1734425450907,-500.0,0.00024931,6]
[345692302,1734425450917,-507.52,0.00024931,6]
[345692303,1734425450927,-500.0,0.00024931,6]
[345692304,1734425450936,-500.0,0.00024931,6]
[345692305,1734425450946,-500.0,0.00024931,6]
[345692306,1734425450955,-575.79,0.00024931,6]
[345692307,1734425450965,-2583.97,0.00024931,6]
[345692308,1734425450974,-151.0,0.00024931,7]
[345692309,1734425450983,-151.0,0.00024931,7]
[345692310,1734425450992,-151.0,0.00024931,7]
[345692311,1734425451001,-501.49557199,0.00024931,6]
[345692312,1734425451010,-500.0,0.00024931,6]
[345692313,1734425451019,-500.0,0.00024931,6]
[345692314,1734425451028,-500.0,0.00024931,6]
[345692315,1734425451037,-500.0,0.00024931,6]
[345692316,1734425451046,-2014.3,0.00024931,6]
[345692317,1734425451055,-500.0,0.00024931,6]
[345692318,1734425451064,-151.0,0.00024931,7]
[345692319,1734425451073,-500.0,0.00024931,6]
[345692320,1734425451082,-151.0,0.00024931,7]
[345692321,1734425451091,-151.0,0.00024931,7]
[345692322,1734425451100,-500.0,0.00024931,6]
[345692323,1734425451109,-500.0,0.00024931,6]
[345692324,1734425451118,-500.0,0.00024931,6]
[345692325,1734425451127,-500.0,0.00024931,6]
[345692326,1734425451136,-2930.53,0.00024931,6]
[345692327,1734425451146,-151.0,0.00024931,7]
[345692328,1734425451155,-1269.94,0.00024931,6]
[345692329,1734425451164,-151.0,0.00024931,7]
[345692330,1734425451174,-500.0,0.00024931,6]
[345692331,1734425451183,-500.0,0.00024931,6]
[345692332,1734425451192,-151.0,0.00024931,7]
[345692333,1734425451201,-1348.48,0.00024931,6]
[345692334,1734425451210,-500.0,0.00024931,6]
[345692335,1734425451219,-681.759088,0.00024931,7]
[345692336,1734425451228,-681.759088,0.00024931,7]
[345692337,1734425451236,-681.759088,0.00024931,7]
[345692338,1734425451246,-500.0,0.00024931,6]
[345692339,1734425451255,-2750.29,0.00024931,6]
[345692340,1734425451264,-151.0,0.00024931,7]
[345692341,1734425451273,-616.45076376,0.00024931,6]
[345692342,1734425451282,-500.0,0.00024931,6]
[345692343,1734425451291,-151.0,0.00024931,7]
[345692344,1734425451300,-151.0,0.00024931,7]
[345692345,1734425451309,-681.759088,0.00024931,7]
[345692346,1734425451318,-681.759088,0.00024931,7]
[345692347,1734425451327,-681.759088,0.00024931,7]
[345692348,1734425451336,-218.04992513,0.00024931,6]
[345692349,1734425451347,-500.0,0.00024931,6]
[345692350,1734425451357,-4791.386794,0.00024931,7]
[345692351,1734425451368,-1000.0,0.00024931,2]
[345692352,1734425451377,-4791.386794,0.00024931,7]
[345692353,1734425451387,-4791.386794,0.00024931,7]
[345692354,1734425451399,-500.0,0.00024931,6]
[345692355,1734425451408,-500.0,0.00024931,6]
[345692356,1734425451417,-4791.386794,0.00024931,7]
[345692357,1734425451424,-4791.386794,0.00024931,7]
[345692358,1734425451433,-500.0,0.00024931,6]
[345692359,1734425451440,-4791.386794,0.00024931,7]
[345692360,1734425451448,-500.0,0.00024931,6]
[345692361,1734425451455,-500.0,0.00024931,6]
[345692362,1734425451462,-500.0,0.00024931,6]
[345692363,1734425451468,-500.0,0.00024931,6]
[345692364,1734425451475,-500.0,0.00024931,6]
[345692365,1734425451482,-500.0,0.00024931,6]
[345692366,1734425451489,-151.0,0.00024931,7]
[345692367,1734425451496,-151.0,0.00024931,7]
[345692368,1734425451504,-151.0,0.00024931,7]
[345692369,1734425451510,-500.0,0.00024931,6]
[345692370,1734425451518,-533.15,0.00024931,6]
[345692371,1734425451525,-500.0,0.00024931,6]
[345692372,1734425451534,-589.91823102,0.00024931,6]
[345692373,1734425451541,-9848.96,0.00024931,6]
[345692374,1734425451548,-313.40499394,0.00024931,6]
[345692375,1734425451555,-500.0,0.00024931,6]
[345692376,1734425451562,-544.11076406,0.00024931,6]
[345692377,1734425451571,-500.0,0.00024931,6]
[345692378,1734425451577,-1209.14,0.00024931,6]
[345692379,1734425451586,-610.62812336,0.00024931,6]
[345692380,1734425451595,-501.70061613,0.00024931,6]
[345692381,1734425451604,-500.0,0.00024931,6]
[345692382,1734425451614,-500.0,0.00024931,6]
[345692383,1734425451628,-1034.10644,0.00024931,7]
[345692384,1734425451637,-1946.88,0.00024931,6]
[345692385,1734425451648,-767.04,0.00024931,6]
[345692386,1734425451657,-1034.10644,0.00024931,7]
[345692387,1734425451668,-1034.10644,0.00024931,7]
[345692388,1734425451678,-500.0,0.00024931,6]
[345692389,1734425451688,-1772.16,0.00024931,6]
[345692390,1734425451697,-500.0,0.00024931,6]
[345692391,1734425451708,-500.0,0.00024931,6]
[345692392,1734425451717,-7645.04,0.00024931,6]
[345692393,1734425451727,-1034.10644,0.00024931,7]
[345692394,1734425451737,-1034.10644,0.00024931,7]
[345692395,1734425451746,-1034.10644,0.00024931,7]
[345692396,1734425451756,-500.0,0.00024931,6]
[345692397,1734425451765,-500.0,0.00024931,6]
[345692398,1734425451774,-500.0,0.00024931,6]
[345692399,1734425451783,-503.04718061,0.00024931,6]
[345692400,1734425451793,-500.0,0.00024931,6]
[345692401,1734425451803,-500.0,0.00024931,6]
[345692402,1734425451812,-1597.26,0.00024931,6]
[345692403,1734425451821,-797.56,0.00024931,6]
[345692404,1734425451830,-263.97681268,0.00024931,6]
[345692405,1734425451839,-500.0,0.00024931,6]
[345692406,1734425451849,-500.0,0.00024931,6]
[345692407,1734425451858,-545.67,0.00024931,6]
[345692408,1734425451867,-500.0,0.00024931,6]
[345692409,1734425451877,-500.0,0.00024931,6]
[345692410,1734425451887,-500.0,0.00024931,6]
[345692411,1734425451898,-500.0,0.00024931,6]
[345692412,1734425451907,-1005.81,0.00024931,6]
[345692413,1734425451916,-603.98921139,0.00024931,6]
[345692414,1734425451926,-2524.67,0.00024931,6]
[345692415,1734425451935,-11798.48,0.00024931,6]
[345692416,1734425451944,-500.0,0.00024931,6]
[345692417,1734425451953,-500.0,0.00024931,6]
[345692418,1734425451963,-520.84608062,0.00024931,6]
[345692419,1734425451973,-504.89183178,0.00024931,6]
[345692420,1734425451983,-500.0,0.00024931,6]
[345692421,1734425451992,-552.96,0.00024931,6]
[345692422,1734425452001,-500.0,0.00024931,6]
[345692423,1734425452011,-238.04012081,0.00024931,6]
[345692424,1734425452020,-500.0,0.00024931,6]
[345692425,1734425452030,-13005.34,0.00024931,6]
[345692426,1734425452039,-422.871451,0.00024931,7]
[345692427,1734425452049,-500.0,0.00024931,6]
[345692428,1734425452058,-422.871451,0.00024931,7]
[345692429,1734425452067,-500.0,0.00024931,6]
[345692430,1734425452078,-422.871451,0.00024931,7]
[345692431,1734425452087,-500.0,0.00024931,6]
[345692432,1734425452097,-500.0,0.00024931,6]
[345692433,1734425452106,-1161.3,0.00024931,6]
[345692434,1734425452115,-1000.0,0.00024931,6]
[345692435,1734425452125,-422.871451,0.00024931,7]
[345692436,1734425452135,-422.871451,0.00024931,7]
[345692437,1734425452146,-422.871451,0.00024931,7]
[345692438,1734425452155,-898.82,0.00024931,6]
[345692439,1734425452165,-2222.06,0.00024931,6]
[345692440,1734425452174,-500.0,0.00024931,6]
[345692441,1734425452184,-500.0,0.00024931,6]
[345692442,1734425452194,-500.0,0.00024931,6]
[345692443,1734425452204,-500.0,0.00024931,6]
[345692444,1734425452213,-504.03651464,0.00024931,6]
[345692445,1734425452223,-500.0,0.00024931,6]
[345692446,1734425452232,-587.54,0.00024931,6]
[345692447,1734425452241,-500.0,0.00024931,6]
[345692448,1734425452251,-500.0,0.00024931,6]
[345692449,1734425452260,-766.57,0.00024931,6]
[345692450,1734425452270,-1986.82,0.00024931,6]
[345692451,1734425452279,-500.0,0.00024931,6]
[345692452,1734425452289,-500.0,0.00024931,6]
[345692453,1734425452298,-500.0,0.00024931,6]
[345692454,1734425452308,-500.0,0.00024931,6]
[345692455,1734425452317,-500.0,0.00024931,6]
[345692456,1734425452327,-2908.71,0.00024931,6]
[345692457,1734425452336,-500.0,0.00024931,6]
[345692458,1734425452346,-1835.4,0.00024931,6]
[345692459,1734425452355,-500.0,0.00024931,6]
[345692460,1734425452365,-500.0,0.00024931,6]
[345692461,1734425452375,-639.6205156,0.00024931,6]
[345692462,1734425452384,-164.455171,0.00024931,7]
[345692463,1734425452396,-500.0,0.00024931,6]
[345692464,1734425452406,-500.0,0.00024931,6]
[345692465,1734425452416,-500.0,0.00024931,6]
[345692466,1734425452425,-500.0,0.00024931,6]
[345692467,1734425452435,-500.0,0.00024931,6]
[345692468,1734425452445,-500.0,0.00024931,6]
[345692469,1734425452454,-500.0,0.00024931,6]
[345692470,1734425452464,-502.56858102,0.00024931,6]
[345692471,1734425452473,-500.0,0.00024931,6]
[345692472,1734425452483,-1590.67,0.00024931,6]
[345692473,1734425452492,-151.0,0.00024931,7]
[345692474,1734425452502,-1447.05,0.00024931,6]
[345692475,1734425452511,-151.0,0.00024931,7]
[345692476,1734425452521,-151.0,0.00024931,7]
[345692477,1734425452530,-500.0,0.00024931,6]
[345692478,1734425452539,-500.0,0.00024931,6]
[345692479,1734425452548,-19653.15,0.00024931,6]
[345692480,1734425452557,-500.0,0.00024931,6]
[345692481,1734425452567,-500.0,0.00024931,6]
[345692482,1734425452576,-500.0,0.00024931,6]
[345692483,1734425452586,-500.0,0.00024931,6]
[345692484,1734425452595,-502.46712294,0.00024931,6]
[345692485,1734425452605,-500.0,0.00024931,2]
[345692486,1734425452615,-500.0,0.00024931,6]
[345692487,1734425452624,-235.53098623,0.00024931,6]
[345692488,1734425452635,-500.0,0.00024931,6]
[345692489,1734425452647,-454.90074495,0.00024931,6]
[345692490,1734425452656,-501.85527511,0.00024931,6]
[345692491,1734425452666,-500.0,0.00024931,6]
[345692492,1734425452675,-500.0,0.00024931,6]
[345692493,1734425452684,-374.52477011,0.00024931,6]
[345692494,1734425452693,-500.0,0.00024931,6]
[345692495,1734425452703,-2231.36,0.00024931,6]
[345692496,1734425452712,-500.0,0.00024931,6]
[345692497,1734425452722,-502.72903499,0.00024931,6]
[345692498,1734425452731,-500.0,0.00024931,6]
[345692499,1734425452740,-500.0,0.00024931,6]
[345692500,1734425452749,-517.07409138,0.00024931,6]
[345692501,1734425452759,-500.0,0.00024931,6]
[345692502,1734425452768,-511.08,0.00024931,6]
[345692503,1734425452777,-674.27,0.00024931,6]
[345692504,1734425452786,-519.94,0.00024931,6]
[345692505,1734425452796,-786.6,0.00024931,6]
[345692506,1734425452805,-1619.42,0.00024931,6]
[345692507,1734425452815,-151.0,0.00024931,7]
[345692508,1734425452824,-151.0,0.00024931,7]
[345692509,1734425452833,-162.872156,0.00024931,7]
[345692510,1734425452842,-500.0,0.00024931,6]
[345692511,1734425452852,-1741.45,0.00024931,6]
[345692512,1734425452861,-500.0,0.00024931,6]
[345692513,1734425452870,-500.0,0.00024931,6]
[345692514,1734425452879,-640.57,0.00024931,6]
[345692515,1734425452888,-502.16890237,0.00024931,6]
[345692516,1734425452906,-151.0,0.00024931,7]
[345692517,1734425452915,-151.0,0.00024931,7]
[345692518,1734425452924,-151.0,0.00024931,7]
[345692519,1734425452934,-3147.67,0.00024931,6]
[345692520,1734425452943,-339.519478,0.00024931,7]
[345692521,1734425452952,-501.97869585,0.00024931,6]
[345692522,1734425452962,-339.519478,0.00024931,7]
[345692523,1734425452971,-151.0,0.00024931,7]
[345692524,1734425452980,-339.519478,0.00024931,7]
[345692525,1734425452990,-151.0,0.00024931,7]
[345692526,1734425452999,-500.0,0.00024931,6]
[345692527,1734425453009,-151.0,0.00024931,7]
[345692528,1734425453019,-525.26755996,0.00024931,6]
[345692529,1734425453028,-500.0,0.00024931,6]
[345692530,1734425453038,-503.31121177,0.00024931,6]
[345692531,1734425453048,-387.12333016,0.00024931,6]
[345692532,1734425453057,-339.519478,0.00024931,7]
[345692533,1734425453067,-500.0,0.00024931,6]
[345692534,1734425453076,-339.519478,0.00024931,7]
[345692535,1734425453086,-339.519478,0.00024931,7]
[345692536,1734425453095,-500.0,0.00024931,6]
[345692537,1734425453104,-246.329835,0.00024931,7]
[345692538,1734425453114,-246.329835,0.00024931,7]
[345692539,1734425453123,-246.329835,0.00024931,7]
[345692540,1734425453132,-200.0,0.00024931,6]
[345692541,1734425453259,-500.0,0.00024931,6]
[345692542,1734425453273,-500.0,0.00024931,6]
[345692543,1734425453282,-246.329835,0.00024931,7]
[345692544,1734425453292,-500.0,0.00024931,6]
[345692545,1734425453301,-246.329835,0.00024931,7]
[345692546,1734425453311,-246.329835,0.00024931,7]
[345692547,1734425453320,-500.0,0.00024931,6]
[345692548,1734425453330,-500.0,0.00024931,6]
[345692549,1734425453339,-500.0,0.00024931,6]
[345692550,1734425453350,-2994.03,0.00024931,6]
[345692551,1734425453359,-500.0,0.00024931,6]
[345692552,1734425453369,-500.0,0.00024931,6]
[345692553,1734425453378,-520.92,0.00024931,6]
[345692554,1734425453387,-993.66,0.00024931,6]
[345692555,1734425453399,-785.03,0.00024931,6]
[345692556,1734425453409,-500.0,0.00024931,6]
[345692557,1734425453419,-500.0,0.00024931,6]
[345692558,1734425453428,-500.0,0.00024931,6]
[345692559,1734425453437,-6877.67,0.00024931,6]
[345692560,1734425453446,-500.0,0.00024931,6]
[345692561,1734425453455,-1814.14,0.00024931,6]
[345692562,1734425453465,-500.0,0.00024931,6]
[345692563,1734425453475,-500.0,0.00024931,6]
[345692564,1734425453484,-1200.6,0.00024931,6]
[345692565,1734425453494,-500.0,0.00024931,6]
[345692566,1734425453503,-500.0,0.00024931,6]
[345692567,1734425453513,-500.0,0.00024931,6]
[345692568,1734425453523,-500.0,0.00024931,6]
[345692569,1734425453532,-2708.04,0.00024931,6]
[345692570,1734425453542,-500.0,0.00024931,6]
[345692571,1734425453551,-16840.02,0.00024931,5]
[345692572,1734425453561,-500.0,0.00024931,6]
[345692573,1734425453571,-500.0,0.00024931,6]
[345692574,1734425453581,-500.0,0.00024931,6]
[345692575,1734425453590,-500.0,0.00024931,6]
[345692576,1734425453600,-500.0,0.00024931,6]
[345692577,1734425453609,-1033.64,0.00024931,6]
[345692578,1734425453619,-500.0,0.00024931,6]
[345692579,1734425453629,-860.74,0.00024931,6]
[345692580,1734425453643,-509.36033276,0.00024931,6]
[345692581,1734425453652,-500.0,0.00024931,6]
[345692582,1734425453662,-2022.44,0.00024931,6]
[345692583,1734425453671,-500.0,0.00024931,6]
[345692584,1734425453681,-49051.97,0.00024931,6]
[345692585,1734425453690,-500.0,0.00024931,6]
[345692586,1734425453699,-500.0,0.00024931,6]
[345692587,1734425453708,-500.0,0.00024931,6]
[345692588,1734425453719,-500.0,0.00024931,6]
[345692589,1734425453729,-1256.94,0.00024931,6]
[345692590,1734425453738,-3068.04,0.00024931,6]
[345692591,1734425453747,-500.0,0.00024931,6]
[345692592,1734425453757,-151.0,0.00024931,7]
[345692593,1734425453766,-500.0,0.00024931,6]
[345692594,1734425453776,-151.0,0.00024931,7]
[345692595,1734425453785,-3944.32,0.00024931,6]
[345692596,1734425453794,-1160.07,0.00024931,6]
[345692597,1734425453804,-500.0,0.00024931,6]
[345692598,1734425453813,-504.11564766,0.00024931,6]
[345692599,1734425453823,-500.0,0.00024931,6]
[345692600,1734425453832,-867.7,0.00024931,6]
[345692601,1734425453841,-500.0,0.00024931,6]
[345692602,1734425453850,-500.0,0.00024931,6]
[345692603,1734425453859,-2406.11275176,0.00024948,2]
[345692604,1734425453868,-512.17149425,0.00024973,2]
[345692605,1734425453878,-500.0,0.00024973,2]
[345692606,1734425453887,-500.0,0.00024973,2]